[Event "ONJK 2024 ABC"]
[Site "Velp, Netherlands"]
[Date "2024.08.07"]
[Round "7.12"]
[White "Helderman, Faas"]
[Black "Verhoog, Willem"]
[Result "1-0"]
[TimeControl "90 minutes + 30 seconds"]
[WhiteElo "1603"]
[BlackElo "1674"]

1. d4 {[%clk 01:30:58]} Nf6 {[%clk 01:30:50]} {[%emt 00:00:11]} 2. Bf4 {[%clk
01:31:19]} {[%emt 00:00:09]} c5 {[%clk 01:31:18]} {[%emt 00:00:04]} 3. c3
{[%clk 01:29:24]} {[%emt 00:02:23]} Qb6 {[%clk 01:30:31]} {[%emt 00:01:17]} 4.
Qb3 {[%clk 01:28:42]} {[%emt 00:01:12]} cxd4 {[%clk 01:27:53]} {[%emt
00:03:09]} 5. Qxb6 {[%clk 01:28:42]} {[%emt 00:00:29]} axb6 {[%clk 01:28:20]}
{[%emt 00:00:04]} 6. cxd4 {[%clk 01:28:41]} {[%emt 00:00:30]} Nc6 {[%clk
01:27:08]} {[%emt 00:01:44]} 7. e3 {[%clk 01:26:49]} {[%emt 00:02:20]} e6
{[%clk 01:22:51]} {[%emt 00:04:47]} 8. Nc3 {[%clk 01:23:08]} {[%emt 00:04:11]}
Bb4 {[%clk 01:19:49]} {[%emt 00:03:33]} 9. Nge2 {[%clk 01:18:40]} {[%emt
00:04:56]} d5 {[%clk 01:12:40]} {[%emt 00:07:41]} 10. O-O-O {[%clk 01:09:45]}
{[%emt 00:09:24]} O-O {[%clk 01:06:25]} {[%emt 00:06:46]} 11. a3 {[%clk
01:07:44]} {[%emt 00:02:30]} Be7 {[%clk 01:05:07]} {[%emt 00:01:49]} 12. Nb5
{[%clk 01:03:44]} {[%emt 00:04:28]} Ne4 {[%clk 01:00:26]} {[%emt 00:05:12]} 13.
Bg3 {[%clk 01:03:03]} {[%emt 00:01:10]} Bd7 {[%clk 00:54:50]} {[%emt 00:06:08]}
14. Nec3 {[%clk 00:51:09]} {[%emt 00:12:23]} Nxc3 {[%clk 00:51:37]} {[%emt
00:03:45]} 15. Nxc3 {[%clk 00:51:26]} {[%emt 00:00:11]} Na5 {[%clk 00:48:46]}
{[%emt 00:03:21]} 16. Bb5 {[%clk 00:28:23]} {[%emt 00:23:33]} Bxb5 {[%clk
00:47:20]} {[%emt 00:01:57]} 17. Nxb5 {[%clk 00:28:43]} {[%emt 00:00:09]} Rfc8+
{[%clk 00:45:46]} {[%emt 00:02:05]} 18. Kb1 {[%clk 00:28:33]} {[%emt 00:00:39]}
Nc4 {[%clk 00:44:32]} {[%emt 00:01:45]} 19. Rd3 {[%clk 00:25:35]} {[%emt
00:03:26]} Ra5 {[%clk 00:41:59]} {[%emt 00:03:05]} 20. Nc3 {[%clk 00:25:32]}
{[%emt 00:00:32]} b5 {[%clk 00:33:40]} {[%emt 00:08:50]} 21. Re1 {[%clk
00:19:58]} {[%emt 00:05:59]} b4 {[%clk 00:31:22]} {[%emt 00:02:53]} 22. axb4
{[%clk 00:19:41]} {[%emt 00:00:46]} Bxb4 {[%clk 00:31:40]} {[%emt 00:00:12]} 23.
Re2 {[%clk 00:19:24]} {[%emt 00:00:47]} Rca8 {[%clk 00:23:19]} {[%emt
00:08:52]} 24. f3 {[%clk 00:16:20]} {[%emt 00:03:30]} Bxc3 {[%clk 00:21:31]}
{[%emt 00:02:22]} 25. Rxc3 {[%clk 00:15:49]} {[%emt 00:00:57]} h6 {[%clk
00:16:36]} {[%emt 00:05:29]} 26. Rb3 {[%clk 00:13:43]} {[%emt 00:02:34]} Ra1+
{[%clk 00:13:27]} {[%emt 00:03:40]} 27. Kc2 {[%clk 00:13:59]} {[%emt 00:00:14]}
Rb8 {[%clk 00:12:29]} {[%emt 00:01:30]} 28. Bxb8 {[%clk 00:13:44]} {[%emt
00:00:44]} b6 {[%clk 00:08:35]} {[%emt 00:04:24]} 29. Bc7 {[%clk 00:12:50]}
{[%emt 00:01:24]} 1-0

[Event "ONJK 2024 ABC"]
[Site "Velp, Netherlands"]
[Date "2024.08.07"]
[Round "7.13"]
[White "Dijkhuijsen, Thomas"]
[Black "Roebers, Bregje"]
[Result "0-1"]
[TimeControl "90 minutes + 30 seconds"]
[WhiteElo "1750"]
[BlackElo "1796"]

1. e4 {[%clk 01:30:58]} g6 {[%clk 01:30:31]} {[%emt 00:00:30]} 2. d4 {[%clk
01:31:10]} {[%emt 00:00:18]} Bg7 {[%clk 01:30:14]} {[%emt 00:00:43]} 3. Nf3
{[%clk 01:31:21]} {[%emt 00:00:23]} c6 {[%clk 01:29:57]} {[%emt 00:00:47]} 4.
Bd3 {[%clk 01:30:49]} {[%emt 00:01:01]} d5 {[%clk 01:29:04]} {[%emt 00:01:24]}
5. e5 {[%clk 01:29:14]} {[%emt 00:02:05]} Bg4 {[%clk 01:22:13]} {[%emt
00:07:21]} 6. h3 {[%clk 01:26:45]} {[%emt 00:02:57]} Bxf3 {[%clk 01:18:23]}
{[%emt 00:04:23]} 7. Qxf3 {[%clk 01:27:05]} {[%emt 00:00:10]} e6 {[%clk
01:17:53]} {[%emt 00:00:59]} 8. Bf4 {[%clk 01:22:11]} {[%emt 00:05:24]} Qb6
{[%clk 01:11:57]} {[%emt 00:06:26]} 9. Nd2 {[%clk 01:12:56]} {[%emt 00:09:44]}
Qxd4 {[%clk 01:09:49]} {[%emt 00:02:39]} 10. c3 {[%clk 01:11:04]} {[%emt
00:02:23]} Qb6 {[%clk 01:09:26]} {[%emt 00:00:52]} 11. Nb3 {[%clk 01:08:27]}
{[%emt 00:03:07]} Nd7 {[%clk 01:08:23]} {[%emt 00:01:34]} 12. Qe2 {[%clk
00:57:30]} {[%emt 00:11:27]} Ne7 {[%clk 01:03:25]} {[%emt 00:05:27]} 13. O-O
{[%clk 00:55:04]} {[%emt 00:02:55]} O-O {[%clk 01:00:41]} {[%emt 00:03:15]} 14.
Rfe1 {[%clk 00:46:12]} {[%emt 00:09:21]} a6 {[%clk 00:56:13]} {[%emt 00:04:58]}
15. Rac1 {[%clk 00:37:29]} {[%emt 00:09:12]} c5 {[%clk 00:54:18]} {[%emt
00:02:27]} 16. Be3 {[%clk 00:34:12]} {[%emt 00:03:48]} Qc7 {[%clk 00:52:29]}
{[%emt 00:02:19]} 17. c4 {[%clk 00:32:18]} {[%emt 00:02:23]} d4 {[%clk
00:47:58]} {[%emt 00:05:01]} 18. Bf4 {[%clk 00:30:54]} {[%emt 00:01:54]} Nc6
{[%clk 00:47:16]} {[%emt 00:01:13]} 19. Bh2 {[%clk 00:26:44]} {[%emt 00:04:39]}
Ncxe5 {[%clk 00:46:12]} {[%emt 00:01:35]} 20. Rc2 {[%clk 00:21:16]} {[%emt
00:05:58]} Qb6 {[%clk 00:43:19]} {[%emt 00:03:23]} 21. f4 {[%clk 00:19:34]}
{[%emt 00:02:12]} Nc6 {[%clk 00:41:40]} {[%emt 00:02:09]} 22. Be4 {[%clk
00:18:23]} {[%emt 00:01:40]} Nb4 {[%clk 00:40:27]} {[%emt 00:01:43]} 23. Rd2
{[%clk 00:17:44]} {[%emt 00:01:08]} Nxa2 {[%clk 00:39:43]} {[%emt 00:01:15]} 24.
Nc1 {[%clk 00:16:56]} {[%emt 00:01:18]} Nxc1 {[%clk 00:38:57]} {[%emt
00:01:17]} 25. Rxc1 {[%clk 00:17:18]} {[%emt 00:00:07]} Nf6 {[%clk 00:32:55]}
{[%emt 00:06:32]} 26. Qf3 {[%clk 00:16:31]} {[%emt 00:01:17]} Nxe4 {[%clk
00:32:50]} {[%emt 00:00:36]} 27. Qxe4 {[%clk 00:16:51]} {[%emt 00:00:08]} Qb4
{[%clk 00:32:38]} {[%emt 00:00:43]} 28. Rdc2 {[%clk 00:15:40]} {[%emt
00:01:42]} Qb3 {[%clk 00:31:18]} {[%emt 00:01:50]} 29. Rd1 {[%clk 00:15:04]}
{[%emt 00:01:06]} Rfd8 {[%clk 00:30:35]} {[%emt 00:01:13]} 30. Qd3 {[%clk
00:15:13]} {[%emt 00:00:20]} Qb4 {[%clk 00:29:41]} {[%emt 00:01:25]} 31. Bg3
{[%clk 00:14:43]} {[%emt 00:01:01]} Rac8 {[%clk 00:27:44]} {[%emt 00:02:27]} 32.
Ra1 {[%clk 00:12:54]} {[%emt 00:02:18]} Qb6 {[%clk 00:26:46]} {[%emt 00:01:28]}
33. Bh4 {[%clk 00:11:31]} {[%emt 00:01:53]} Rd7 {[%clk 00:26:31]} {[%emt
00:00:46]} 34. Re1 {[%clk 00:10:25]} {[%emt 00:01:36]} Qc6 {[%clk 00:25:35]}
{[%emt 00:01:26]} 35. b3 {[%clk 00:09:13]} {[%emt 00:01:42]} b5 {[%clk
00:25:09]} {[%emt 00:00:56]} 36. Rec1 {[%clk 00:08:41]} {[%emt 00:01:01]} b4
{[%clk 00:23:57]} {[%emt 00:01:41]} 37. Re2 {[%clk 00:07:23]} {[%emt 00:01:48]}
a5 {[%clk 00:22:34]} {[%emt 00:01:54]} 38. Ra1 {[%clk 00:07:33]} {[%emt
00:00:20]} a4 {[%clk 00:21:27]} {[%emt 00:01:37]} 39. Rxa4 {[%clk 00:06:57]}
{[%emt 00:01:06]} Ra8 {[%clk 00:21:37]} {[%emt 00:00:20]} 40. Rea2 {[%clk
00:06:42]} {[%emt 00:00:44]} Rxa4 {[%clk 00:21:38]} {[%emt 00:00:29]} 41. Rxa4
{[%clk 00:07:06]} {[%emt 00:00:06]} f5 {[%clk 00:21:13]} {[%emt 00:00:56]} 42.
Bg3 {[%clk 00:06:27]} {[%emt 00:01:09]} Qe4 {[%clk 00:21:04]} {[%emt 00:00:38]}
43. Qd2 {[%clk 00:04:57]} {[%emt 00:02:01]} d3 {[%clk 00:20:34]} {[%emt
00:01:01]} 44. Kf2 {[%clk 00:03:52]} {[%emt 00:01:34]} Bd4+ {[%clk 00:20:12]}
{[%emt 00:00:53]} 45. Kf1 {[%clk 00:03:59]} {[%emt 00:00:23]} Bc3 {[%clk
00:20:13]} {[%emt 00:00:29]} 46. Qa2 {[%clk 00:03:33]} {[%emt 00:00:56]} d2
{[%clk 00:20:13]} {[%emt 00:00:30]} 47. Ra8+ {[%clk 00:03:12]} {[%emt
00:00:50]} Kg7 {[%clk 00:19:53]} {[%emt 00:00:49]} 48. Kg1 {[%clk 00:02:25]}
{[%emt 00:01:17]} d1=Q+ {[%clk 00:20:08]} {[%emt 00:00:15]} 49. Kh2 {[%clk
00:02:33]} {[%emt 00:00:22]} Qde2 {[%clk 00:20:19]} {[%emt 00:00:20]} 50. Qxe2
{[%clk 00:02:17]} {[%emt 00:00:45]} Qxe2 {[%clk 00:20:43]} {[%emt 00:00:07]} 51.
Bh4 {[%clk 00:02:09]} {[%emt 00:00:38]} Bf6 {[%clk 00:20:54]} {[%emt 00:00:19]}
52. Bg3 {[%clk 00:01:14]} {[%emt 00:01:24]} Rd2 {[%clk 00:21:04]} {[%emt
00:00:21]} 53. Ra7+ {[%clk 00:01:17]} {[%emt 00:00:27]} Kh6 {[%clk 00:21:20]}
{[%emt 00:00:13]} 54. Rxh7+ {[%clk 00:01:23]} {[%emt 00:00:24]} Kxh7 {[%clk
00:21:44]} {[%emt 00:00:06]} 55. Bf2 {[%clk 00:01:41]} {[%emt 00:00:12]} Qxf2
{[%clk 00:22:07]} {[%emt 00:00:07]} 56. Kh1 {[%clk 00:02:02]} {[%emt 00:00:09]}
Qxg2# {[%clk 00:22:29]} {[%emt 00:00:07]} 0-1

[Event "ONJK 2024 ABC"]
[Site "Velp, Netherlands"]
[Date "2024.08.07"]
[Round "7.14"]
[White "De Jong, Lode"]
[Black "Lejzerowicz, Nathan"]
[Result "1-0"]
[TimeControl "90 minutes + 30 seconds"]
[WhiteElo "1755"]
[BlackElo "1668"]

1. d4 {[%clk 01:30:58]} {[%emt 00:00:01]} Nf6 {[%clk 01:30:26]} {[%emt
00:00:35]} 2. c4 {[%clk 01:31:24]} {[%emt 00:00:03]} c5 {[%clk 01:30:20]}
{[%emt 00:00:36]} 3. d5 {[%clk 01:31:45]} {[%emt 00:00:09]} b5 {[%clk
01:29:38]} {[%emt 00:01:12]} 4. cxb5 {[%clk 01:32:09]} {[%emt 00:00:06]} a6
{[%clk 01:29:44]} {[%emt 00:00:24]} 5. bxa6 {[%clk 01:32:33]} {[%emt 00:00:05]}
Bxa6 {[%clk 01:29:54]} {[%emt 00:00:21]} 6. Nc3 {[%clk 01:32:59]} {[%emt
00:00:04]} d6 {[%clk 01:29:56]} {[%emt 00:00:28]} 7. e4 {[%clk 01:33:25]}
{[%emt 00:00:04]} Bxf1 {[%clk 01:29:49]} {[%emt 00:00:37]} 8. Kxf1 {[%clk
01:33:52]} {[%emt 00:00:04]} g6 {[%clk 01:29:36]} {[%emt 00:00:42]} 9. g3
{[%clk 01:34:12]} {[%emt 00:00:11]} Bg7 {[%clk 01:29:14]} {[%emt 00:00:52]} 10.
Kg2 {[%clk 01:34:36]} {[%emt 00:00:05]} O-O {[%clk 01:28:06]} {[%emt 00:01:38]}
11. Nf3 {[%clk 01:34:58]} {[%emt 00:00:08]} Nbd7 {[%clk 01:26:48]} {[%emt
00:01:48]} 12. a4 {[%clk 01:35:14]} {[%emt 00:00:14]} Qb6 {[%clk 01:24:12]}
{[%emt 00:03:06]} 13. Qe2 {[%clk 01:35:36]} {[%emt 00:00:07]} Qb7 {[%clk
01:19:02]} {[%emt 00:05:40]} 14. Ra3 {[%clk 01:33:51]} {[%emt 00:02:15]} Rfb8
{[%clk 01:15:45]} {[%emt 00:03:48]} 15. Nb5 {[%clk 01:31:37]} {[%emt 00:02:44]}
Nb6 {[%clk 01:13:22]} {[%emt 00:02:53]} 16. b3 {[%clk 01:31:39]} {[%emt
00:00:28]} Rc8 {[%clk 01:13:07]} {[%emt 00:00:44]} 17. Bb2 {[%clk 01:30:00]}
{[%emt 00:02:09]} Ra5 {[%clk 01:08:48]} {[%emt 00:04:49]} 18. Nd2 {[%clk
01:27:49]} {[%emt 00:02:41]} Nfd7 {[%clk 01:03:53]} {[%emt 00:05:25]} 19. Bxg7
{[%clk 01:26:33]} {[%emt 00:01:47]} Kxg7 {[%clk 01:04:27]} {[%emt 00:00:27]} 20.
Raa1 {[%clk 01:23:49]} {[%emt 00:03:44]} Qa8 {[%clk 01:00:47]} {[%emt
00:04:09]} 21. Rac1 {[%clk 01:23:40]} {[%emt 00:00:39]} Ne5 {[%clk 00:59:14]}
{[%emt 00:02:03]} 22. f4 {[%clk 01:22:47]} {[%emt 00:01:23]} Ned7 {[%clk
00:58:40]} {[%emt 00:01:04]} 23. Qd3 {[%clk 01:18:48]} {[%emt 00:04:29]} Nb8
{[%clk 00:56:12]} {[%emt 00:02:57]} 24. g4 {[%clk 01:16:58]} {[%emt 00:02:21]}
Na6 {[%clk 00:53:09]} {[%emt 00:03:33]} 25. Qc3+ {[%clk 01:16:57]} {[%emt
00:00:31]} Kg8 {[%clk 00:51:22]} {[%emt 00:02:17]} 26. Qxa5 {[%clk 01:17:14]}
{[%emt 00:00:13]} Nd7 {[%clk 00:50:32]} {[%emt 00:01:20]} 27. Nc4 {[%clk
01:16:55]} {[%emt 00:00:49]} Qb7 {[%clk 00:49:41]} {[%emt 00:01:21]} 28. Rcd1
{[%clk 01:15:08]} {[%emt 00:02:17]} Nb4 {[%clk 00:49:36]} {[%emt 00:00:35]} 29.
Qa7 {[%clk 01:15:24]} {[%emt 00:00:14]} Qxa7 {[%clk 00:48:46]} {[%emt
00:01:21]} 30. Nxa7 {[%clk 01:15:45]} {[%emt 00:00:08]} Rb8 {[%clk 00:48:50]}
{[%emt 00:00:25]} 31. e5 {[%clk 01:14:48]} {[%emt 00:01:27]} dxe5 {[%clk
00:48:00]} {[%emt 00:01:20]} 32. Nc6 {[%clk 01:12:12]} {[%emt 00:03:07]} Re8
{[%clk 00:45:51]} {[%emt 00:02:38]} 33. Nxb4 {[%clk 01:12:23]} {[%emt
00:00:20]} cxb4 {[%clk 00:45:59]} {[%emt 00:00:21]} 34. Nxe5 {[%clk 01:12:42]}
{[%emt 00:00:12]} Nc5 {[%clk 00:45:55]} {[%emt 00:00:34]} 35. Rb1 {[%clk
01:12:16]} {[%emt 00:00:56]} Rd8 {[%clk 00:45:33]} {[%emt 00:00:51]} 36. Nc6
{[%clk 01:12:20]} {[%emt 00:00:27]} Rd7 {[%clk 00:45:25]} {[%emt 00:00:38]} 37.
Nxb4 {[%clk 01:12:23]} {[%emt 00:00:28]} Kf8 {[%clk 00:45:19]} {[%emt
00:00:34]} 38. Rhd1 {[%clk 01:12:24]} {[%emt 00:00:29]} Rb7 {[%clk 00:44:45]}
{[%emt 00:01:04]} 39. Nc6 {[%clk 01:12:46]} {[%emt 00:00:09]} Nxb3 {[%clk
00:43:07]} {[%emt 00:02:08]} 40. Nd4 {[%clk 01:12:50]} {[%emt 00:00:26]} Na5
{[%clk 00:42:51]} {[%emt 00:00:46]} 41. Rxb7 {[%clk 01:13:14]} {[%emt
00:00:06]} Nxb7 {[%clk 00:43:11]} {[%emt 00:00:10]} 42. Rb1 {[%clk 01:13:41]}
{[%emt 00:00:04]} Na5 {[%clk 00:43:27]} {[%emt 00:00:14]} 43. Rb8+ {[%clk
01:14:07]} {[%emt 00:00:04]} Kg7 {[%clk 00:43:44]} {[%emt 00:00:12]} 44. Nc6
{[%clk 01:14:32]} {[%emt 00:00:04]} Nc4 {[%clk 00:43:04]} {[%emt 00:01:10]} 45.
Kf3 {[%clk 01:14:59]} {[%emt 00:00:04]} e6 {[%clk 00:43:03]} {[%emt 00:00:31]}
46. dxe6 {[%clk 01:15:22]} {[%emt 00:00:08]} fxe6 {[%clk 00:43:09]} {[%emt
00:00:22]} 47. Rb4 {[%clk 01:15:44]} {[%emt 00:00:07]} Nd2+ {[%clk 00:43:19]}
{[%emt 00:00:21]} 48. Ke2 {[%clk 01:16:08]} {[%emt 00:00:07]} g5 {[%clk
00:43:20]} {[%emt 00:00:29]} 49. fxg5 {[%clk 01:16:34]} {[%emt 00:00:04]} h6
{[%clk 00:43:25]} {[%emt 00:00:24]} 50. gxh6+ {[%clk 01:17:00]} {[%emt
00:00:04]} Kxh6 {[%clk 00:43:29]} {[%emt 00:00:26]} 51. Kxd2 {[%clk 01:17:25]}
{[%emt 00:00:05]} e5 {[%clk 00:43:51]} {[%emt 00:00:09]} 52. Nxe5 {[%clk
01:17:51]} {[%emt 00:00:04]} Kg5 {[%clk 00:44:01]} {[%emt 00:00:19]} 53. h4+
{[%clk 01:18:18]} {[%emt 00:00:04]} Kh6 {[%clk 00:43:46]} {[%emt 00:00:45]} 54.
a5 {[%clk 01:18:43]} {[%emt 00:00:06]} Kh7 {[%clk 00:43:51]} {[%emt 00:00:24]}
55. a6 {[%clk 01:19:09]} {[%emt 00:00:04]} Kh6 {[%clk 00:44:02]} {[%emt
00:00:18]} 56. a7 {[%clk 01:19:30]} {[%emt 00:00:09]} Kh7 {[%clk 00:44:24]}
{[%emt 00:00:08]} 57. a8=Q {[%clk 01:19:55]} {[%emt 00:00:05]} Kh6 {[%clk
00:44:41]} {[%emt 00:00:14]} 58. h5 {[%clk 01:20:08]} {[%emt 00:00:17]} Kg5
{[%clk 00:44:40]} {[%emt 00:00:31]} 59. Nc4 {[%clk 01:20:26]} {[%emt 00:00:08]}
Kh6 {[%clk 00:44:53]} {[%emt 00:00:21]} 60. g5+ {[%clk 01:20:48]} {[%emt
00:00:08]} Kxh5 {[%clk 00:45:03]} {[%emt 00:00:21]} 61. Qh8+ {[%clk 01:21:02]}
{[%emt 00:00:16]} Kg6 {[%clk 00:45:19]} {[%emt 00:00:14]} 62. Rb6+ {[%clk
01:21:12]} {[%emt 00:00:17]} Kf5 {[%clk 00:45:39]} {[%emt 00:00:11]} 63. Ne3+
{[%clk 01:21:21]} {[%emt 00:00:22]} Ke4 {[%clk 00:45:32]} {[%emt 00:00:38]} 64.
g6 {[%clk 01:21:39]} {[%emt 00:00:12]} Kf4 {[%clk 00:45:36]} {[%emt 00:00:24]}
65. g7 {[%clk 01:22:02]} {[%emt 00:00:08]} Ke4 {[%clk 00:45:50]} {[%emt
00:00:16]} 66. Re6+ {[%clk 01:22:28]} {[%emt 00:00:05]} Kf4 {[%clk 00:46:04]}
{[%emt 00:00:16]} 67. Re4+ {[%clk 01:22:53]} {[%emt 00:00:05]} Kg5 {[%clk
00:45:43]} {[%emt 00:00:51]} 68. g8=N {[%clk 01:22:27]} {[%emt 00:00:56]} Kg6
{[%clk 00:46:02]} {[%emt 00:00:11]} 69. Re6+ {[%clk 01:22:21]} {[%emt
00:00:36]} Kg5 {[%clk 00:45:52]} {[%emt 00:00:40]} 70. Qg7+ {[%clk 01:22:29]}
{[%emt 00:00:21]} Kf4 {[%clk 00:46:13]} {[%emt 00:00:10]} 71. Re4+ {[%clk
01:22:19]} {[%emt 00:00:40]} Kxe4 {[%clk 00:46:11]} {[%emt 00:00:33]} 72. Qg4+
{[%clk 01:22:34]} {[%emt 00:00:14]} Ke5 {[%clk 00:46:34]} {[%emt 00:00:08]} 73.
Nh6 {[%clk 01:22:43]} {[%emt 00:00:18]} Kf6 {[%clk 00:46:50]} {[%emt 00:00:17]}
74. Qh5 {[%clk 01:22:48]} {[%emt 00:00:15]} Ke7 {[%clk 00:47:06]} {[%emt
00:00:23]} 75. Qg6 {[%clk 01:23:10]} {[%emt 00:00:06]} Kd7 {[%clk 00:47:31]}
{[%emt 00:00:07]} 76. Qf6 {[%clk 01:23:28]} {[%emt 00:00:12]} Kc7 {[%clk
00:47:37]} {[%emt 00:00:25]} 77. Qe6 {[%clk 01:23:36]} {[%emt 00:00:21]} Kd8
{[%clk 00:47:38]} {[%emt 00:00:29]} 78. Qf7 {[%clk 01:23:59]} {[%emt 00:00:07]}
Kc8 {[%clk 00:48:02]} {[%emt 00:00:07]} 79. Qe7 {[%clk 01:24:22]} {[%emt
00:00:06]} Kb8 {[%clk 00:48:25]} {[%emt 00:00:08]} 80. Qd7 {[%clk 01:24:40]}
{[%emt 00:00:10]} Ka8 {[%clk 00:48:47]} {[%emt 00:00:09]} 81. Nd5 {[%clk
01:24:00]} {[%emt 00:01:08]} Kb8 {[%clk 00:49:08]} {[%emt 00:00:12]} 82. Nf5
{[%clk 01:24:27]} {[%emt 00:00:01]} Ka8 {[%clk 00:49:19]} {[%emt 00:00:20]} 83.
Nd4 {[%clk 01:24:51]} {[%emt 00:00:04]} Kb8 {[%clk 00:49:32]} {[%emt 00:00:18]}
84. Kc1 {[%clk 01:25:07]} {[%emt 00:00:15]} Ka8 {[%clk 00:49:50]} {[%emt
00:00:12]} 85. Kb1 {[%clk 01:25:31]} {[%emt 00:00:06]} Kb8 {[%clk 00:50:12]}
{[%emt 00:00:09]} 86. Kb2 {[%clk 01:25:55]} {[%emt 00:00:06]} Ka8 {[%clk
00:50:28]} {[%emt 00:00:13]} 87. Ka1 {[%clk 01:26:11]} {[%emt 00:00:14]} Kb8
{[%clk 00:50:45]} {[%emt 00:00:13]} 88. Nc6+ {[%clk 01:26:35]} {[%emt
00:00:06]} Ka8 {[%clk 00:51:08]} {[%emt 00:00:08]} 89. Nb6# {[%clk 01:26:58]}
{[%emt 00:00:07]} 1-0

[Event "ONJK 2024 ABC"]
[Site "Velp, Netherlands"]
[Date "2024.08.07"]
[Round "7.15"]
[White "Zhao, Nick"]
[Black "Georgopoulos, Mylo"]
[Result "1-0"]
[TimeControl "90 minutes + 30 seconds"]
[WhiteElo "1836"]
[BlackElo "1776"]

1. d4 {[%clk 01:30:59]} Nf6 {[%clk 01:30:56]} {[%emt 00:00:05]} 2. c4 {[%clk
01:31:26]} {[%emt 00:00:04]} e6 {[%clk 01:31:23]} {[%emt 00:00:03]} 3. Nf3
{[%clk 01:31:51]} {[%emt 00:00:04]} b6 {[%clk 01:31:11]} {[%emt 00:00:42]} 4.
g3 {[%clk 01:32:16]} {[%emt 00:00:05]} Bb7 {[%clk 01:31:31]} {[%emt 00:00:11]}
5. Bg2 {[%clk 01:32:40]} {[%emt 00:00:06]} h6 {[%clk 01:31:08]} {[%emt
00:00:53]} 6. O-O {[%clk 01:31:14]} {[%emt 00:01:56]} Be7 {[%clk 01:28:14]}
{[%emt 00:03:23]} 7. Nc3 {[%clk 01:31:05]} {[%emt 00:00:39]} O-O {[%clk
01:27:34]} {[%emt 00:01:11]} 8. Bf4 {[%clk 01:22:44]} {[%emt 00:08:50]} d6
{[%clk 01:24:56]} {[%emt 00:03:09]} 9. Re1 {[%clk 01:19:41]} {[%emt 00:03:33]}
c5 {[%clk 01:19:35]} {[%emt 00:05:51]} 10. d5 {[%clk 01:14:34]} {[%emt
00:05:37]} e5 {[%clk 01:18:44]} {[%emt 00:01:21]} 11. Bd2 {[%clk 01:10:50]}
{[%emt 00:04:13]} Qc8 {[%clk 01:08:44]} {[%emt 00:10:30]} 12. e4 {[%clk
01:09:50]} {[%emt 00:01:30]} Nh7 {[%clk 01:00:37]} {[%emt 00:08:37]} 13. a4
{[%clk 01:01:14]} {[%emt 00:09:06]} Nd7 {[%clk 00:52:46]} {[%emt 00:08:21]} 14.
Bh3 {[%clk 00:58:44]} {[%emt 00:03:01]} Qd8 {[%clk 00:51:57]} {[%emt 00:01:19]}
15. Ra3 {[%clk 00:55:21]} {[%emt 00:03:52]} Bc8 {[%clk 00:48:17]} {[%emt
00:04:10]} 16. Kh1 {[%clk 00:49:31]} {[%emt 00:06:20]} Bg5 {[%clk 00:46:20]}
{[%emt 00:02:28]} 17. Nb5 {[%clk 00:42:48]} {[%emt 00:07:13]} Qe7 {[%clk
00:39:12]} {[%emt 00:07:37]} 18. a5 {[%clk 00:25:36]} {[%emt 00:17:42]} Ndf6
{[%clk 00:33:08]} {[%emt 00:06:35]} 19. Bxc8 {[%clk 00:24:17]} {[%emt
00:01:50]} Rfxc8 {[%clk 00:32:52]} {[%emt 00:00:45]} 20. a6 {[%clk 00:23:59]}
{[%emt 00:00:47]} Ng4 {[%clk 00:31:27]} {[%emt 00:01:55]} 21. Kg2 {[%clk
00:24:05]} {[%emt 00:00:24]} Rd8 {[%clk 00:27:09]} {[%emt 00:04:49]} 22. Nxg5
{[%clk 00:23:08]} {[%emt 00:01:27]} Nxf2 {[%clk 00:18:57]} {[%emt 00:08:42]} 23.
Kxf2 {[%clk 00:23:16]} {[%emt 00:00:22]} hxg5 {[%clk 00:19:06]} {[%emt
00:00:21]} 24. Kg2 {[%clk 00:21:25]} {[%emt 00:02:19]} Qd7 {[%clk 00:17:58]}
{[%emt 00:01:38]} 25. Qf3 {[%clk 00:17:43]} {[%emt 00:04:12]} g6 {[%clk
00:17:39]} {[%emt 00:00:50]} 26. g4 {[%clk 00:17:16]} {[%emt 00:00:57]} Kg7
{[%clk 00:17:23]} {[%emt 00:00:46]} 27. Rf1 {[%clk 00:15:09]} {[%emt 00:02:37]}
Rf8 {[%clk 00:15:43]} {[%emt 00:02:10]} 28. Rf2 {[%clk 00:13:37]} {[%emt
00:02:02]} f5 {[%clk 00:15:49]} {[%emt 00:00:25]} 29. gxf5 {[%clk 00:13:41]}
{[%emt 00:00:26]} Nf6 {[%clk 00:15:40]} {[%emt 00:00:39]} 30. Bxg5 {[%clk
00:12:53]} {[%emt 00:01:17]} Rae8 {[%clk 00:12:09]} {[%emt 00:04:02]} 31. Re3
{[%clk 00:11:46]} {[%emt 00:01:36]} Nxd5 {[%clk 00:10:42]} {[%emt 00:01:58]} 32.
exd5 {[%clk 00:10:04]} {[%emt 00:02:11]} Rxf5 {[%clk 00:10:59]} {[%emt
00:00:13]} 33. Qg3 {[%clk 00:09:53]} {[%emt 00:00:42]} Ref8 {[%clk 00:10:26]}
{[%emt 00:01:03]} 34. Ref3 {[%clk 00:09:40]} {[%emt 00:00:42]} Rg8 {[%clk
00:08:14]} {[%emt 00:02:42]} 35. Qg4 {[%clk 00:08:49]} {[%emt 00:01:20]} Rgf8
{[%clk 00:06:41]} {[%emt 00:02:04]} 36. h4 {[%clk 00:08:18]} {[%emt 00:01:01]}
e4 {[%clk 00:06:34]} {[%emt 00:00:37]} 37. Rxf5 {[%clk 00:07:10]} {[%emt
00:01:38]} gxf5 {[%clk 00:05:57]} {[%emt 00:01:06]} 38. Qg3 {[%clk 00:07:12]}
{[%emt 00:00:29]} Rg8 {[%clk 00:05:04]} {[%emt 00:01:22]} 39. Qxd6 {[%clk
00:06:54]} {[%emt 00:00:47]} Qf7 {[%clk 00:03:28]} {[%emt 00:02:07]} 40. Qh6#
{[%clk 00:07:03]} {[%emt 00:00:20]} 1-0